fUSD/lending_fUSD_20250331
["ID","MTS","AMOUNT","RATE_DAILY","PERIOD"]
[356900934,1743403838152,-66938.68851251,0.00021,2]
[356900936,1743403838165,-27728.7085634,0.00021,2]
[356900938,1743403838178,-1152.0,0.0002152,2]
[356900940,1743403838188,-1000.0,0.00021718,2]
[356900942,1743403838197,-1142.498,0.00021859,2]
[356900943,1743403838206,-495.067,0.00021859,2]
[356900945,1743403838215,-600.0,0.00021859,2]
[356900947,1743403838226,-214.81669174,0.000219,2]
[356900949,1743403838235,-150.0,0.00021917,2]
[356900950,1743403838244,-1753.75,0.0002215,2]
[356900952,1743403838254,-584.90482502,0.00022456,2]
[356900954,1743403838263,-496.4,0.00022893,2]
[356900956,1743403838273,-272.66228091,0.00023,2]
[356900957,1743403838282,-150.0,0.00023287,2]
[356900959,1743403838291,-2000.0,0.00023333,4]
[356900961,1743403838300,-1613.0,0.00023552,2]
[356900963,1743403838310,-1000.0,0.00023692,2]
[356900964,1743403838319,-178.04,0.00023836,2]
[356900966,1743403838328,-154.78,0.0002416,2]
[356900968,1743403838337,-150.0,0.00024657,2]
[356900970,1743403838347,-150.77059524,0.00024773,2]
[356900972,1743403838356,-502.32397826,0.00024773,2]
[356900974,1743403838365,-151.46,0.0002479,2]
[356900975,1743403838374,-151.46,0.0002479,2]
[356900977,1743403838383,-193.613578,0.000248,7]
[356900979,1743403838392,-193.613578,0.000248,7]
[356900981,1743403838402,-151.906162,0.000248,7]
[356900982,1743403838411,-152.054712,0.000248,7]
[356900984,1743403838420,-151.0,0.000248,7]
[356900986,1743403838430,-153.027165,0.000248,7]
[356900988,1743403838439,-157.920276,0.000248,7]
[356900990,1743403838448,-2500.051325,0.000248,7]
[356900992,1743403838457,-2500.051325,0.000248,7]
[356900993,1743403838466,-152.799362,0.000248,7]
[356900995,1743403838475,-151.0,0.000248,7]
[356900996,1743403838485,-155.357661,0.000248,7]
[356900997,1743403838494,-151.0,0.000248,7]
[356900998,1743403838503,-154.483585,0.000248,7]
[356900999,1743403838514,-151.0,0.000248,7]
[356901000,1743403838523,-34031.71237676,0.000248,2]
[356901001,1743403838535,-279.25634177,0.000248,2]
[356901060,1743403839988,-159128.34510804,0.000248,2]
[356901061,1743403840000,-2342.47585922,0.000248,2]
[356901063,1743403840013,-5300.15910941,0.000248,2]
[356901065,1743403840025,-354.63427541,0.000248,2]
[356901181,1743403842919,-1100.0,0.000248,2]
[356901193,1743403843027,-101424.34993951,0.000248,2]
[356901195,1743403843038,-294.40845774,0.000248,2]
[356901198,1743403843057,-1866.55401414,0.000248,2]
[356901200,1743403843066,-157.526881,0.000248,7]
[356901202,1743403843075,-151.0,0.000248,7]
[356901204,1743403843084,-151.0,0.000248,7]
[356901206,1743403843093,-153.947344,0.000248,7]
[356901208,1743403843102,-119.95920084,0.000248,7]
[356901210,1743403843114,-32.43273116,0.000248,7]
[356901212,1743403843123,-151.0,0.000248,7]
[356901214,1743403843132,-174.616859,0.000248,7]
[356901216,1743403843141,-153.557669,0.000248,7]
[356901218,1743403843151,-151.0,0.000248,7]
[356901220,1743403843160,-445.356874,0.000248,7]
[356901221,1743403843171,-1444.155611,0.000248,7]
[356901222,1743403843180,-445.356874,0.000248,7]
[356901223,1743403843189,-1444.155611,0.000248,7]
[356901224,1743403843198,-154.621228,0.000248,7]
[356901225,1743403843209,-151.0,0.000248,7]
[356901226,1743403843218,-151.0,0.000248,7]
[356901227,1743403843229,-151.46,0.0002489,2]
[356901228,1743403843238,-151.46,0.0002489,2]
[356901229,1743403843248,-151.46,0.0002489,2]
[356901230,1743403843257,-3049.76654284,0.000249,2]
[356901232,1743403844295,-3723.83319058,0.000249,2]
[356901233,1743403844306,-4656.8773694,0.000249,2]
[356901234,1743403845635,-5722.32155505,0.000249,2]
[356901235,1743403845753,-379.89623438,0.000249,2]
[356901236,1743403845768,-769.686283,0.000249,2]
[356901237,1743403845779,-470.22347517,0.000249,2]
[356901238,1743403845790,-1219.82770971,0.000249,2]
[356901239,1743403845800,-543.2619752,0.000249,2]
[356901240,1743403845811,-386.63445547,0.000249,2]
[356901241,1743403845822,-335.30570427,0.000249,2]
[356901242,1743403845913,-0.83065759,0.000249,2]
[356901243,1743403845924,-2517.20327841,0.000249,2]
[356901244,1743403845936,-4672.00804507,0.000249,2]
[356901245,1743403845947,-43724.00362768,0.000249,2]
[356901246,1743403845959,-2169.16492796,0.000249,2]
[356901247,1743403846082,-32100.28698966,0.000249,2]
[356901248,1743403846093,-42017.71305148,0.000249,2]
[356901264,1743404021638,-509.8466,0.000149,2]
[356901265,1743404558443,158.34823,0.000249,34]
[356901266,1743404584818,418.0,0.00025,30]
[356901267,1743404703198,1000.0,0.00014799,2]
[356901268,1743405022612,158.34823,0.000249,34]
[356901271,1743405031818,-150.0,0.0001639,2]
[356901272,1743405031828,-350.0,0.0001639,3]
[356901273,1743405031837,-150.0,0.00017129,2]
[356901274,1743405031847,-350.0,0.00017129,3]
[356901275,1743405031857,-150.0,0.00018029,2]
[356901276,1743405031866,-350.0,0.00018029,3]
[356901277,1743405031876,-658.1772,0.000189,2]
[356901278,1743405031885,-151.28,0.00021817,2]
[356901279,1743405031894,-412.46,0.00024529,2]
[356901280,1743405031903,-5505.71466372,0.0002475,2]
[356901281,1743405031915,-1519.78196924,0.0002475,2]
[356901282,1743405031926,-3079.51141144,0.0002475,2]
[356901283,1743405031937,-2501.25394069,0.0002475,2]
[356901284,1743405031948,-2669.88678915,0.0002475,2]
[356901285,1743405031957,-173.6262,0.000248,2]
[356901286,1743405031966,-1342.90704789,0.00024883,3]
[356901287,1743405031975,-9645.8302259,0.00024915,2]
[356901288,1743405031984,-5544.0066266,0.00024932,2]
[356901289,1743405031994,-250.0,0.00025,2]
[356901290,1743405032003,-173.68,0.00025747,2]
[356901291,1743405032012,-2751.0,0.00026129,2]
[356901292,1743405032022,-508.75,0.00026324,2]
[356901293,1743405032031,-448.5,0.00026527,2]
[356901294,1743405032041,-1000.0,0.00026594,2]
[356901295,1743405032050,-183.89,0.0002666,2]
[356901296,1743405032059,-250.0,0.00026727,2]
[356901297,1743405032070,-412.46,0.00026793,2]
[356901298,1743405032079,-219.44,0.00026849,2]
[356901299,1743405032088,-162.48,0.00026849,2]
[356901300,1743405032098,-300.0,0.00027,2]
[356901301,1743405032107,-89627.75,0.00027007,2]
[356901302,1743405032116,-500.0,0.0002703,2]
[356901303,1743405032126,-255.16,0.00027397,2]
[356901304,1743405032135,-424.09191663,0.000274,2]
[356901305,1743405032145,-698.083,0.00027461,16]
[356901306,1743405032154,-23900.0,0.0002867,2]
[356901307,1743405032163,-200.0,0.00028687,2]
[356901308,1743405032172,-255.16,0.00028767,2]
[356901309,1743405032181,-214.81669174,0.000289,2]
[356901311,1743405032190,-350.0,0.00029,2]
[356901313,1743405032200,-412.46,0.00029057,2]
[356901315,1743405032209,-775.87,0.00029288,2]
[356901317,1743405032218,-1342.90704789,0.000299,4]
[356901319,1743405032227,-158.34823,0.000299,34]
[356901321,1743405032237,-1000.0,0.00029918,2]
[356901323,1743405032247,-457.8534,0.00029987,2]
[356901325,1743405032256,-1106.8731,0.00029987,2]
[356901327,1743405032265,-421.729,0.00029987,2]
[356901329,1743405032275,-274.7706,0.00029987,2]
[356901331,1743405032284,-2067.0966,0.00029987,2]
[356901333,1743405032293,-48306.89,0.0003,30]
[356901334,1743405032302,-3949.0,0.0003,3]
[356901336,1743405032311,-7371.22810666,0.0003,2]
[356901338,1743405032320,-300.0,0.0003,7]
[356901339,1743405032329,-577.9743,0.00030087,2]
[356901340,1743405032338,-1026.3502,0.00030087,2]
[356901342,1743405032347,-43164.5956,0.00030087,2]
[356901343,1743405032356,-782.79,0.00030088,2]
[356901344,1743405032365,-255.16,0.00030137,2]
[356901345,1743405032374,-6680.11473154,0.00030187,3]
[356901346,1743405032386,-783.71730266,0.00030187,3]
[356901347,1743405032400,-36903.71149521,0.00030187,3]
[356901348,1743405032409,-400.0,0.00031,2]
[356901349,1743405032418,-200.0,0.000313,2]
[356901350,1743405032427,-65.75201402,0.00031321,2]
[356901351,1743405032438,-346.70798598,0.00031321,2]
[356901352,1743405032447,-255.16,0.00031507,2]
[356901353,1743405032457,-311.48,0.00031808,2]
[356901354,1743405032466,-365.06,0.00031808,2]
[356901355,1743405032476,-454.98,0.00031808,2]
[356901356,1743405032486,-321.09,0.00031808,2]
[356901357,1743405032495,-155.88,0.00031808,2]
[356901358,1743405032504,-309.13,0.00031808,2]
[356901359,1743405032514,-909.1,0.0003189,2]
[356901360,1743405032523,-151.23,0.0003189,2]
[356901361,1743405032533,-153.27,0.0003189,2]
[356901362,1743405032544,-150.0,0.0003189,2]
[356901363,1743405032555,-219.44,0.00032646,2]
[356901364,1743405032564,-255.16,0.00032877,2]
[356901365,1743405032576,-157.78,0.00032932,120]
[356901366,1743405032586,-1000.0,0.0003322,2]
[356901367,1743405032595,-1000.0,0.00033242,2]
[356901368,1743405032605,-2173.62103302,0.00033477,3]
[356901369,1743405032621,-757.19135972,0.00033477,3]
[356901370,1743405037769,-6992.57246063,0.00033477,3]
[356901371,1743405037784,-633.765105,0.00033477,3]
[356901372,1743405037796,-11424.87385156,0.00033477,3]
[356901373,1743405038020,-1233.42756601,0.00033477,3]
[356901374,1743405038034,-2138.35369886,0.00033477,3]
[356901375,1743405038045,-2042.42992608,0.00033477,3]
[356901376,1743405038055,-5053.00168114,0.00033477,3]
[356901377,1743405038067,-392.55054101,0.00033477,3]
[356901378,1743405038083,-10078.75748,0.00033477,3]
[356901379,1743405038104,-541.13257616,0.00033477,3]
[356901383,1743405040167,-2442.9798114,0.00033477,3]
[356901384,1743405040180,-2284.13563257,0.0003349,120]
[356901385,1743405040371,-1759.8369796,0.0003349,120]
[356901386,1743405040385,-1547.60080162,0.0003349,120]
[356901419,1743405043079,-158.73903252,0.0003347,2]
[356901420,1743405043091,-5109.54820159,0.0003349,120]
[356901421,1743405043113,-2739.39838462,0.0003349,120]
[356901422,1743405043125,-150.0,0.000335,2]
[356901423,1743405043135,-2000.0,0.0003357,5]
[356901424,1743405043146,-412.46,0.00033585,2]
[356901425,1743405043157,-500.0,0.0003404,5]
[356901426,1743405043168,-158.34823,0.000349,34]
[356901427,1743405043180,-154.14,0.00035616,2]
[356901428,1743405043190,-352.53690718,0.00035644,2]
[356901429,1743405043203,-1196.22309282,0.00035644,2]
[356901430,1743405043214,-329.35437239,0.00035644,2]
[356901445,1743405043688,-453.43562761,0.00035644,2]
[356901460,1743405043851,-581.32573179,0.00035644,2]
[356901461,1743405043865,-201.46426821,0.00035644,2]
[356901462,1743405043874,-2021.4965886,0.00035676,4]
[356901463,1743405043883,-412.46,0.00035849,2]
[356901464,1743405043893,-163.94,0.000364,7]
[356901465,1743405043902,-270.11693818,0.00036545,2]
[356901466,1743405043912,-1000.0,0.00036566,2]
[356901467,1743405043921,-150.0,0.00036623,2]
[356901468,1743405043930,-594.77879664,0.00036665,9]
[356901469,1743405043940,-150.0,0.0003667,2]
[356901470,1743405043949,-8018.53540639,0.0003668,3]
[356901472,1743405044161,-2490.46897881,0.0003668,3]
[356901473,1743405044170,-1376.87102119,0.0003669,2]
[356901476,1743405045849,-518.85000882,0.0003669,2]
[356901477,1743405045861,-500.0,0.0003669,2]
[356901478,1743405045907,-539.40356777,0.0003669,2]
[356901479,1743405045918,-2008.48145401,0.0003669,2]
[356901480,1743405046055,-58942.36194821,0.0003669,2]
[356901481,1743405046064,-885.60447678,0.00036699,11]
[356901482,1743405046074,-885.60447678,0.000367,11]
[356901483,1743405046083,-219.8763,0.000367,2]
[356901484,1743405046093,-382.0,0.000367,2]
[356901485,1743405046102,-327.86138015,0.000367,2]
[356901486,1743405046111,-885.60447678,0.000367,11]
[356901487,1743405046121,-150.0,0.00036718,2]
[356901488,1743405046130,-150.0,0.00036718,2]
[356901489,1743405046139,-3503.00146174,0.00036755,3]
[356901490,1743405046149,-28024.0116939,0.0003676,3]
[356901491,1743405046158,-3503.00146174,0.00036765,3]
[356901492,1743405046167,-151.47,0.00036765,2]
[356901493,1743405046176,-76.07242729,0.0003677,2]
[356901494,1743405046187,-726.80776368,0.0003677,2]
[356901495,1743405046197,-700.0,0.0003677,2]
[356901496,1743405046206,-1751.50073087,0.0003677,3]
[356901497,1743405046216,-1808.63905643,0.0003677,3]
[356901499,1743405330339,-150.0,0.00023523,2]
[356901500,1743405333065,-1.0,0.00023523,2]
[356901501,1743405333089,-217.94542471,0.000335,2]
[356901503,1743405908395,84590.1534,0.00015,2]
[356901508,1743406036535,1656.85958434,0.00033481,120]
[356901510,1743406041529,-150.0,0.00014979,2]
[356901516,1743406122491,319.389429,0.00014825,2]
[356901527,1743406203366,350.0,0.00014936,3]
[356901528,1743406203533,350.0,0.00014966,3]
[356901533,1743406232076,-403.78443291,0.000149,2]
[356901535,1743406232087,-150.0,0.00014936,2]
[356901537,1743406232096,-150.0,0.00014966,2]
[356901539,1743406232106,-500.0,0.00014973,2]
[356901540,1743406232115,-264.0,0.00014979,2]
[356901541,1743406232125,-150.0,0.00014979,2]
[356901542,1743406232135,-26.13178168,0.0001498,2]
[356901543,1743406232147,-1026.39824093,0.0001498,2]
[356901544,1743406232163,-1711.20872084,0.0001498,2]
[356901545,1743406232175,-486.87103,0.0001498,2]
[356901546,1743406232186,-935.06652891,0.0001498,2]
[356901547,1743406232198,-1372.6227422,0.0001498,2]
[356901548,1743406232210,-735.85692776,0.0001498,2]
[356901549,1743406232221,-472.12295122,0.0001498,2]
[356901550,1743406232233,-2538.11450347,0.0001498,2]
[356901551,1743406232244,-656.11590339,0.0001498,2]
[356901552,1743406232255,-306221.57562904,0.0001498,2]
[356901553,1743406232265,-258854.97441115,0.00015,2]
[356901554,1743406232284,-94429.25590573,0.00015,2]
[356901555,1743406232303,-6926.35821744,0.00015,2]
[356901556,1743406232470,-1218.25,0.00015,2]
[356901557,1743406232482,-4639.47753284,0.00015,2]
[356901572,1743406237942,-999.60496488,0.00015,2]
[356901573,1743406237971,-277.91485434,0.00015,2]
[356901574,1743406238114,-8519.11979,0.00015,2]
[356901575,1743406238126,-5081.0035196,0.00015,2]
[356901576,1743406238138,-1893.07921605,0.00015,2]
[356901577,1743406238155,-7690.1668913,0.00015,2]
[356901578,1743406238196,-3386.44945899,0.00015,2]
[356901579,1743406238207,-447.20556288,0.00015,2]
[356901580,1743406238218,-368.49367635,0.00015,2]
[356901581,1743406238230,-503.01173433,0.00015,2]
[356901582,1743406238247,-730.25731111,0.00015,2]
[356901613,1743406240310,-500.3348243,0.00015,2]
[356901614,1743406240428,-0.0116488,0.00015,2]
[356901615,1743406240439,-766.4,0.00015,2]
[356901616,1743406240642,-502.9286934,0.00015,2]
[356901628,1743406241321,-151.94441106,0.00015,2]
[356901643,1743406243426,-19307.30957315,0.00015,2]
[356901644,1743406246058,-1130.07324647,0.00015,2]
[356901645,1743406246070,-396.47856975,0.00015,2]
[356901646,1743406246081,-39093.24322307,0.00015,2]
[356901647,1743406246092,-300.948,0.00015,2]
[356901648,1743406246104,-492.29309794,0.00015,2]
[356901649,1743406246229,-639.22380711,0.00015,2]
[356901650,1743406246240,-3088.4339,0.00015,2]
[356901651,1743406246251,-473.20250235,0.00015,2]
[356901652,1743406246262,-1130.78065668,0.00015,2]
[356901653,1743406246273,-2724.67216898,0.00015,2]
[356901654,1743406246284,-360.15999998,0.00015,2]
[356901655,1743406246427,-34767.3888421,0.00015,2]
[356901682,1743406322587,350.0,0.0001495,3]
[356901683,1743406338165,-1545.2102065,0.000149,2]
[356901684,1743406338190,-2736.76845922,0.000149,2]
[356901685,1743406338213,-150.0,0.0001495,2]
[356901686,1743406338239,-500.0,0.00014973,2]
[356901687,1743406338266,-1625918.37298285,0.00015,2]
[356901688,1743406338289,-2932677.15586632,0.00015,2]
[356901689,1743406338312,-211.63523513,0.000159,2]
[356901690,1743406338336,-6849.0987284,0.000159,2]
[356901691,1743406338361,-2736.7684592,0.00016,2]
[356901692,1743406338384,-342.55964656,0.0001619,2]
[356901693,1743406338406,-150.0,0.0001639,2]
[356901694,1743406338428,-350.0,0.0001639,3]
[356901695,1743406338450,-150.0,0.0001639,2]
[356901696,1743406338471,-350.0,0.0001639,3]
[356901697,1743406338496,-2736.7684592,0.000171,2]
[356901698,1743406338519,-2736.7684592,0.000182,2]
[356901699,1743406338544,-2736.7684592,0.000193,2]
[356901700,1743406338565,-2000.0,0.0002,4]
[356901701,1743406338586,-151.47,0.0002,2]
[356901702,1743406338607,-151.47,0.0002,2]
[356901703,1743406338629,-151.47,0.0002,2]
[356901704,1743406338651,-151.47,0.0002,2]
[356901705,1743406338672,-151.47,0.0002,2]
[356901706,1743406338693,-151.47,0.0002,2]
[356901707,1743406338715,-151.47,0.0002,2]
[356901708,1743406338739,-151.47,0.0002,2]
[356901709,1743406338761,-151.47,0.0002,2]
[356901710,1743406338782,-151.47,0.0002,2]
[356901711,1743406338804,-151.47,0.0002,2]
[356901712,1743406338826,-151.47,0.0002,2]
[356901713,1743406338846,-151.47,0.0002,2]
[356901714,1743406338867,-151.47,0.0002,2]
[356901715,1743406338889,-151.47,0.0002,2]
[356901716,1743406338915,-151.47,0.0002,2]
[356901717,1743406338937,-151.47,0.0002,2]
[356901718,1743406338962,-151.47,0.0002,2]
[356901719,1743406338983,-151.47,0.0002,2]
[356901720,1743406339006,-151.47,0.0002,2]
[356901721,1743406339028,-151.47,0.0002,2]
[356901722,1743406339050,-151.47,0.0002,2]
[356901723,1743406339072,-151.47,0.0002,2]
[356901724,1743406339094,-151.47,0.0002,2]
[356901725,1743406339116,-151.47,0.0002,2]
[356901726,1743406339138,-151.47,0.0002,2]
[356901727,1743406339161,-151.47,0.0002,2]
[356901728,1743406339182,-502.6916685,0.0002,2]
[356901729,1743406339203,-539.30478386,0.0002,2]
[356901730,1743406339224,-502.20816352,0.0002,2]
[356901731,1743406339247,-2736.7684592,0.000204,2]
[356901732,1743406339268,-896.48832709,0.00020452,2]
[356901733,1743406339292,-2736.7684592,0.000215,2]
[356901734,1743406339316,-2736.7684592,0.000226,2]
[356901735,1743406339340,-2736.7684592,0.000237,2]
[356901736,1743406339364,-734.57605586,0.000239,2]
[356901737,1743406339385,-161.30734533,0.00024773,2]
[356901738,1743406339407,-151.47,0.0002479,2]
[356901739,1743406339428,-151.47,0.0002479,2]
[356901740,1743406339450,-278166.950535,0.000248,2]
[356901741,1743406339472,-151.0,0.000248,7]
[356901742,1743406339493,-151.0,0.000248,7]
[356901743,1743406339516,-2736.7684592,0.000248,2]
[356901744,1743406339537,-501.80205626,0.00024873,2]
[356901745,1743406339558,-500.0,0.00024873,2]
[356901746,1743406339580,-151.47,0.0002489,2]
[356901747,1743406339601,-151.47,0.0002489,2]
[356901748,1743406339623,-388061.3838068,0.000249,2]
[356901749,1743406445465,-200.0,0.00021911,2]
[356901750,1743406445493,-150.0,0.00023405,2]
[356901751,1743406445522,-350.0,0.00023405,3]
[356901752,1743406445551,-150.0,0.00024102,2]
[356901753,1743406445579,-350.0,0.00024102,3]
[356901754,1743406445609,-151.0,0.000249,7]
[356901755,1743406445635,-151.0,0.000249,7]
[356901756,1743406445663,-1299.74005,0.000249,7]
[356901757,1743406445689,-151.0,0.000249,7]
[356901758,1743406445715,-1299.74005,0.000249,7]
[356901759,1743406445742,-237.569675,0.000249,7]
[356901760,1743406445768,-150.0,0.00025165,2]
[356901761,1743406445795,-350.0,0.00025165,3]
[356901762,1743406445822,-1073.0,0.00025457,2]
[356901763,1743406445852,-154.78,0.0002671,2]
[356901764,1743406445879,-197.49,0.00026849,2]
[356901765,1743406445905,-175.2,0.00028369,2]
[356901766,1743406445933,-210.88,0.00029621,120]
[356901767,1743406445959,-198.53,0.00029881,2]
[356901768,1743406445986,-212.0,0.00029999,2]
[356901769,1743406446015,-13454.94398072,0.0003,2]
[356901770,1743406446042,-21600.8,0.00030167,10]
[356901771,1743406446068,-555.12687692,0.00032481,4]
[356901772,1743406446100,-197.49,0.00032646,2]
[356901773,1743406446127,-14.58457529,0.000335,2]
[356901774,1743406446154,-326.87,0.00033586,2]
[356901775,1743406446182,-15414.58,0.00034363,2]
[356901776,1743406446208,-150.0,0.00034635,7]
[356901777,1743406446234,-260.07,0.00035125,120]
[356901778,1743406446261,-157.78,0.00035366,120]
[356901779,1743406446287,-168.2,0.00035397,2]
[356901780,1743406446314,-152.58,0.00035397,2]
[356901781,1743406446343,-452.15,0.00035397,2]
[356901782,1743406446370,-151.19,0.00035397,2]
[356901783,1743406446397,-698.7,0.00035397,2]
[356901784,1743406446423,-150.0,0.00035397,2]
[356901785,1743406446449,-150.0,0.00035397,2]
[356901786,1743406446474,-150.0,0.00035397,2]
[356901787,1743406446500,-150.0,0.00035397,2]
[356901788,1743406446527,-150.0,0.00035436,2]
[356901789,1743406446553,-200.0,0.00035462,2]
[356901790,1743406446579,-224.25,0.00035561,2]
[356901791,1743406446607,-250.0,0.00035597,2]
[356901792,1743406446633,-1000.0,0.00035614,2]
[356901793,1743406446661,-23900.0,0.0003564,2]
[356901794,1743406446688,-665.729,0.00035666,42]
[356901795,1743406446714,-1864.4185493,0.00035666,4]
[356901796,1743406446741,-326.87,0.0003585,2]
[356901797,1743406446766,-1121.77831777,0.00036035,5]
[356901798,1743406446792,-1327.77898566,0.00036035,5]
[356901799,1743406446817,-164.185934,0.00036204,3]
[356901800,1743406446844,-200.0,0.00036476,10]
[356901801,1743406446871,-150.0,0.00036497,2]
[356901802,1743406446899,-191.84717264,0.00036497,2]
[356901803,1743406446927,-150.0,0.00036501,2]
[356901804,1743406446954,-150.0,0.00036517,2]
[356901805,1743406446981,-228.43100312,0.00036534,2]
[356901806,1743406447012,-150.0,0.00036543,2]
[356901807,1743406447040,-150.0,0.00036556,2]
[356901808,1743406447068,-150.0,0.00036575,2]
[356901809,1743406447097,-152.53458628,0.00036576,2]
[356901810,1743406447125,-150.0,0.00036579,2]
[356901811,1743406447152,-150.0,0.00036579,2]
[356901812,1743406447180,-150.0,0.0003658,2]
[356901813,1743406447208,-150.0,0.00036588,2]
[356901814,1743406447237,-150.0,0.00036607,2]
[356901815,1743406447265,-150.0,0.00036609,2]
[356901816,1743406447295,-150.0,0.00036611,2]
[356901817,1743406447324,-150.0,0.00036623,2]
[356901818,1743406447357,-150.0,0.00036626,2]
[356901819,1743406447389,-150.0,0.00036633,2]
[356901820,1743406447420,-150.0,0.00036666,2]
[356901821,1743406447447,-151.47,0.0003667,2]
[356901822,1743406447475,-150.0,0.00036678,2]
[356901823,1743406447501,-1000.0,0.0003668,2]
[356901824,1743406447527,-211.1981,0.0003668,2]
[356901825,1743406447554,-2875.5517,0.0003668,2]
[356901826,1743406447579,-500.0,0.0003668,2]
[356901827,1743406447608,-2251.2729,0.0003668,2]
[356901828,1743406447634,-36002.9597,0.0003668,2]
[356901829,1743406447660,-902.787,0.0003668,2]
[356901830,1743406447686,-1347.032,0.0003668,2]
[356901831,1743406447712,-151.3139,0.0003668,2]
[356901832,1743406447739,-18158.321,0.0003669,2]
[356901833,1743406447767,-150.0,0.00036696,2]
[356901834,1743406447794,-150.0,0.00036696,2]
[356901835,1743406447822,-150.0,0.00036697,2]
[356901836,1743406447852,-500.00000506,0.000367,3]
[356901837,1743406447879,-150.0,0.00036702,2]
[356901838,1743406447907,-150.0,0.00036736,2]
[356901839,1743406447936,-150.0,0.00036759,2]
[356901840,1743406447963,-650.51883,0.0003676,2]
[356901841,1743406447990,-11369.3702133,0.00036765,2]
[356901842,1743406448020,-376.13767516,0.0003677,3]
[356901843,1743406448048,-158.34823,0.0003677,59]
[356901844,1743406448076,-151.47,0.0003679,2]
[356901845,1743406448104,-151.47,0.0003679,2]
[356901846,1743406448131,-151.47,0.0003679,2]
[356901847,1743406448159,-151.47,0.0003679,2]
[356901848,1743406448187,-120710.69144856,0.0003679,3]
[356901849,1743406448201,-200.0,0.0003679,3]
[356901850,1743406448213,-150.0,0.0003679,3]
[356901851,1743406448224,-350.0,0.0003679,3]
[356901852,1743406448239,-150.0,0.0003679,3]
[356901853,1743406448250,-350.0,0.0003679,3]
[356901854,1743406448262,-151.0,0.0003679,3]
[356901855,1743406448273,-151.0,0.0003679,3]
[356901856,1743406448387,-1299.74005,0.0003679,3]
[356901857,1743406448399,-151.0,0.0003679,3]
[356901858,1743406448418,-1299.74005,0.0003679,3]
[356901859,1743406448429,-237.569675,0.0003679,3]
[356901860,1743406448440,-150.0,0.0003679,3]
[356901861,1743406448451,-350.0,0.0003679,3]
[356901862,1743406448462,-1073.0,0.0003679,3]
[356901863,1743406448473,-154.78,0.0003679,3]
[356901864,1743406448484,-197.49,0.0003679,3]
[356901865,1743406448495,-175.2,0.0003679,3]
[356901866,1743406448506,-210.88,0.0003679,3]
[356901867,1743406448517,-198.53,0.0003679,3]
[356901868,1743406448532,-212.0,0.0003679,3]
[356901869,1743406448542,-13454.94398072,0.0003679,3]
[356901870,1743406448553,-21600.8,0.0003679,3]
[356901871,1743406448564,-555.12687692,0.0003679,3]
[356901872,1743406448575,-197.49,0.0003679,3]
[356901873,1743406448586,-14.58457529,0.0003679,3]
[356901874,1743406448599,-326.87,0.0003679,3]
[356901875,1743406448610,-15414.58,0.0003679,3]
[356901876,1743406448621,-150.0,0.0003679,3]
[356901877,1743406448632,-260.07,0.0003679,3]
[356901878,1743406448643,-157.78,0.0003679,3]
[356901879,1743406448654,-168.2,0.0003679,3]
[356901880,1743406448664,-152.58,0.0003679,3]
[356901881,1743406448676,-452.15,0.0003679,3]
[356901882,1743406448687,-151.19,0.0003679,3]
[356901883,1743406448702,-698.7,0.00036765,2]